[Event "44th Chess Olympiad Open 2022"]
[Site "Chennai"]
[Date "2022.08.07"]
[Round "9.87"]
[White "Fancy, Stuart"]
[Black "Senglek, Khonsavanh"]
[Result "1-0"]
[WhiteElo "1984"]
[BlackElo "1253"]
[Annotator "NA RC"]
[PlyCount "77"]
[EventDate "2022.??.??"]
[TimeControl "60"]

1. e4 {[%emt 0:00:07]} e6 {[%emt 0:00:06]} 2. d4 {[%emt 0:00:25]} d5 {[%emt 0:
00:00]} 3. e5 {[%emt 0:00:05]} c5 {[%emt 0:00:01]} 4. c3 {[%emt 0:00:05]} Nc6 {
[%emt 0:00:24]} 5. Nf3 {[%emt 0:00:07]} Qb6 {[%emt 0:00:38]} 6. Bd3 {[%emt 0:
00:00]} cxd4 {[%emt 0:00:28]} 7. cxd4 {[%emt 0:00:06]} Nge7 {[%emt 0:00:06]} 8.
O-O {[%emt 0:00:20]} Ng6 {[%emt 0:00:05]} 9. h4 {[%emt 0:00:57]} Nb4 {[%emt 0:
00:00]} 10. Be2 {[%emt 0:01:23]} Ne7 {[%emt 0:00:02]} 11. Nc3 {[%emt 0:00:18]}
Nf5 {[%emt 0:02:03]} 12. g4 {[%emt 0:01:50]} Ne7 {[%emt 0:02:43]} 13. a3 {
[%emt 0:00:14]} Nbc6 {[%emt 0:00:33]} 14. Nb5 {[%emt 0:00:14]} Ng8 {[%emt 0:00:
00]} 15. b4 {[%emt 0:01:33]} a6 {[%emt 0:00:21]} 16. Nd6+ {[%emt 0:00:38]} Bxd6
{[%emt 0:00:13]} 17. exd6 {[%emt 0:00:08]} Nf6 {[%emt 0:00:35]} 18. g5 {
[%emt 0:01:46]} Ne4 {[%emt 0:01:01]} 19. Qd3 {[%emt 0:03:47]} Nxd6 {[%emt 0:00:
00]} 20. Bf4 {[%emt 0:00:27]} Qd8 {[%emt 0:04:02]} 21. Rfe1 {[%emt 0:03:21]}
Nc4 {[%emt 0:06:05]} 22. h5 {[%emt 0:06:44]} g6 {[%emt 0:07:02]} 23. Nd2 {
[%emt 0:01:10]} Nxd2 {[%emt 0:04:08]} 24. Qxd2 {[%emt 0:00:31]} f6 {[%emt 0:00:
00]} 25. Kg2 {[%emt 0:03:51]} e5 {[%emt 0:04:15]} 26. dxe5 {[%emt 0:23:14]}
fxe5 {[%emt 0:01:01]} 27. Bxe5 {[%emt 0:25:21]} Nxe5 {[%emt 0:03:02]} 28. Bf3 {
[%emt 0:00:17]} Qd6 {[%emt 0:07:03]} 29. Qd4 {[%emt 0:04:32]} Be6 {[%emt 0:00:
00]} 30. Rxe5 {[%emt 0:00:18]} O-O-O {[%emt 0:01:07]} 31. Rxe6 {[%emt 0:00:34]}
Qc7 {[%emt 0:05:25]} 32. Rae1 {[%emt 0:02:43]} Kb8 {[%emt 0:04:31]} 33. Bxd5 {
[%emt 0:01:48]} Rhf8 {[%emt 0:01:37]} 34. Re7 {[%emt 0:05:46]} Rd7 {[%emt 0:00:
00]} 35. Qe5 {[%emt 0:02:55]} Rxe7 {[%emt 0:02:08]} 36. Qxe7 {[%emt 0:00:06]}
Qxe7 {[%emt 0:00:40]} 37. Rxe7 {[%emt 0:00:04]} Rf5 {[%emt 0:00:08]} 38. Rxb7+
{[%emt 0:00:44]} Kc8 {[%emt 0:00:21]} 39. Be6+ {[%emt 0:00:08]} 1-0

[Event "44th Chess Olympiad Open 2022"]
[Site "Chennai"]
[Date "2022.08.07"]
[Round "9.89"]
[White "Enemchukwu Chinedu Benjamin"]
[Black "Jaiswal Prashant S"]
[Result "1-0"]
[WhiteElo "1889"]
[BlackElo "1683"]
[Annotator "NA RC"]
[PlyCount "41"]
[EventDate "2022.??.??"]
[TimeControl "60"]

1. e4 {[%emt 0:00:44]} c5 {[%emt 0:00:32]} 2. d4 {[%emt 0:00:07]} cxd4 {
[%emt 0:01:21]} 3. c3 {[%emt 0:00:05]} dxc3 {[%emt 0:01:13]} 4. Nxc3 {[%emt 0:
00:00]} Nc6 {[%emt 0:01:45]} 5. Nf3 {[%emt 0:00:06]} d6 {[%emt 0:01:30]} 6. Bc4
{[%emt 0:00:11]} a6 {[%emt 0:01:36]} 7. e5 {[%emt 0:00:09]} dxe5 {[%emt 0:00:
00]} 8. Qxd8+ {[%emt 0:00:28]} Nxd8 {[%emt 0:01:05]} 9. Nd5 {[%emt 0:00:13]}
Ne6 {[%emt 0:04:45]} 10. Nb6 {[%emt 0:00:14]} Rb8 {[%emt 0:00:51]} 11. Nxe5 {
[%emt 0:00:10]} g6 {[%emt 0:05:30]} 12. Nxf7 {[%emt 0:00:38]} Kxf7 {[%emt 0:00:
00]} 13. Bf4 {[%emt 0:00:08]} Nh6 {[%emt 0:01:53]} 14. Bxb8 {[%emt 0:00:31]}
Bg7 {[%emt 0:00:39]} 15. O-O {[%emt 0:01:45]} Kf6 {[%emt 0:04:32]} 16. Rfe1 {
[%emt 0:01:18]} Nf7 {[%emt 0:06:34]} 17. Nxc8 {[%emt 0:02:53]} Rxc8 {[%emt 0:
00:00]} 18. Rxe6+ {[%emt 0:00:27]} Kf5 {[%emt 0:00:35]} 19. Rxe7 {[%emt 0:00:
00]} Rxc4 {[%emt 0:01:37]} 20. Rxf7+ {[%emt 0:00:39]} Bf6 {[%emt 0:00:10]} 21.
Rxb7 {[%emt 0:01:16]} 1-0

[Event "44th Chess Olympiad Open 2022"]
[Site "Chennai"]
[Date "2022.08.07"]
[Round "9.89"]
[White "Nadan, Avinesh"]
[Black "Escalante Ramirez, Brian Sebasti"]
[Result "1-0"]
[WhiteElo "1540"]
[BlackElo "2496"]
[Annotator "TA"]
[PlyCount "106"]
[EventDate "2022.??.??"]
[TimeControl "60"]

{[%evp 11,106,0,7,0,5,-12,-12,-17,30,28,35,11,38,-9,6,3,12,8,27,26,26,7,9,0,25,
31,35,7,35,35,35,-37,23,16,28,18,73,72,150,168,212,118,104,73,82,72,47,45,139,
137,207,202,206,206,1012,245,335,335,293,96,126,127,225,-29991,406,396,385,28,
423,413,513,498,465,409,29954,12806,29987,29978,29978,29979,29980,29981,29981,
29982,29983,29984,29984,29983,29982,29983,29985,29986,29986,29984,29984,29985,
29985]} 1. e4 {[%emt 0:00:13]} Nf6 {[%emt 0:00:11]} 2. Nc3 {[%emt 0:01:03]} e5
{[%emt 0:00:41]} 3. Nf3 {[%emt 0:01:05]} Nc6 {[%emt 0:00:18]} 4. Bc4 {[%emt 0:
00:00]} Bc5 {[%emt 0:01:15]} 5. d3 {[%emt 0:02:35]} a6 {[%emt 0:01:27]} 6. a3 {
[%emt 0:00:46]} d6 {[%emt 0:00:25]} 7. Bg5 {[%emt 0:01:11] C50: Hungarian
Defence and Giuoco Pianissimo.} h6 {[%emt 0:01:08]} 8. Bd2 {[%emt 0:02:34]} Bg4
{[%emt 0:00:24] [#]} 9. h3 $146 {[%emt 0:00:31] The position is equal.} ({
Predecessor:} 9. b4 Ba7 10. h3 Bh5 11. O-O Qd7 12. b5 Na5 13. bxa6 g5 14. Bb5
c6 15. axb7 Nxb7 {0-1 (23) Zlesakova,R-Korsinskij,N (1504) Prague 2015}) 9...
Bh5 {[%emt 0:02:05]} (9... Bxf3 $142 10. Qxf3 Nd4) 10. g4 $11 {[%emt 0:00:41]}
Bg6 {[%emt 0:05:42]} 11. Qe2 {[%emt 0:00:51]} Qd7 {[%emt 0:05:33]} 12. Nd5 {
[%emt 0:03:04]} (12. Qf1 $14 {is superior.}) 12... O-O-O {[%emt 0:05:29]} 13.
Nxf6 {[%emt 0:02:41]} gxf6 {[%emt 0:00:18]} 14. O-O-O {[%emt 0:00:34]} Kb8 {
[%emt 0:14:14]} (14... h5 $5 {[%cal Rh5g4]}) 15. Be3 {[%emt 0:04:36]} h5 {
[%emt 0:02:36]} 16. Rhg1 {[%emt 0:02:26]} hxg4 {[%emt 0:00:49]} 17. hxg4 {
[%emt 0:00:23]} Ba7 {[%emt 0:01:36]} 18. Bd5 {[%emt 0:00:59]} Ne7 {[%emt 0:00:
00]} 19. Ba2 {[%emt 0:01:06]} d5 {[%emt 0:00:43]} 20. Bxa7+ {[%emt 0:01:15]}
Kxa7 {[%emt 0:00:02]} 21. d4 {[%emt 0:00:54]} (21. Nd2 $14) 21... dxe4 {
[%emt 0:08:23]} (21... exd4 $15 22. exd5 d3 23. Qe3+ Kb8) 22. dxe5 {[%emt 0:00:
00]} Qc6 {[%emt 0:07:01]} 23. Qe3+ {[%emt 0:06:29]} b6 {[%emt 0:02:57]} (23...
Ka8 $1 $11 {remains equal.} 24. Nd4 Qb6) 24. Nd4 $16 {[%emt 0:01:06]} Qb7 {
[%emt 0:07:09]} ({Better is} 24... Qc5) 25. exf6 {[%emt 0:00:29] White is more
active.} Nd5 {[%emt 0:00:58] [#]} 26. Qg3 {[%emt 0:01:31]} ({White should play
} 26. Qg5 $1 $18) 26... Nxf6 {[%emt 0:05:19]} 27. Qc3 {[%emt 0:01:01]} c5 {
[%emt 0:04:48] [#]} 28. Nb5+ {[%emt 0:03:54]} axb5 {[%emt 0:00:47]} 29. Qxf6 {
[%emt 0:00:11]} Rxd1+ {[%emt 0:00:48]} (29... Qc7 $14) 30. Rxd1 {[%emt 0:00:16]
} Re8 {[%emt 0:00:55]} (30... Rc8 $16) 31. Bd5 $18 {[%emt 0:01:17]} Qe7 {
[%emt 0:00:47]} 32. Qc6 {[%emt 0:00:59]} e3 $2 {[%emt 0:06:10] [#]} (32... Rd8
33. Rd2 Qd7 34. Qxd7+ Rxd7) 33. fxe3 $2 {[%emt 0:01:22]} (33. Bc4 $1 {Rd7+
would kill now.} Rd8 (33... Rb8 34. Rd7+) 34. Rxd8 (34. Qxb5 Rxd1+ 35. Kxd1
Qd6+ 36. Bd3 exf2 $11) 34... Qxd8 35. Bd5 Qxd5 36. Qxd5) 33... Be4 {[%emt 0:02:
06]} 34. Bxe4 {[%emt 0:03:35]} (34. Qxb5 Bxd5 35. Rxd5 Qxe3+ 36. Kb1 Qe1+ 37.
Ka2 Qe6 $18) 34... Qxe4 {[%emt 0:00:15] Endgame KQR-KQR} 35. Rd7+ $2 {[%emt 0:
03:19]} (35. Qxb5 $18 {is more deadly. White wants to mate with Rd7+.} Re7 36.
Kb1) 35... Ka6 $16 {[%emt 0:00:20]} 36. Qc7 {[%emt 0:00:00][%csl Gd7][%cal
Rc7a7]} Qa8 {[%emt 0:01:23] Prevents Qa7+.} (36... Qh1+ $16 37. Rd1 Qf3) 37.
Rxf7 $4 {[%emt 0:03:31]} (37. b3 $18) 37... Rxe3 $4 {[%emt 0:01:30]} (37...
Qh1+ {avoids the disaster.} 38. Kd2 Qg2+ 39. Kd3 c4+ 40. Qxc4 bxc4+ 41. Kc3
Rxe3+ 42. Kb4 Qd2+ 43. c3 Qxb2+ 44. Kxc4 Qxc3+ 45. Kd5 Qc5#) 38. b3 $18 {
[%emt 0:04:35]} Re4 {[%emt 0:02:42]} 39. Qd7 {[%emt 0:00:30]} ({Not} 39. Rf6
Qb7 40. Qxc5 Rxg4 41. Rxb6+ Qxb6 $18) (39. g5 $18 {Threatens to win with g6.}
c4 40. b4 (40. Rf6 Qb7 $18)) 39... c4 $2 {[%emt 0:00:59]} (39... Rd4 $1 $11 40.
Qf5 c4) 40. a4 {[%emt 0:01:21][%csl Ga4][%cal Rd7b5,Ya3a4,Ya4b5]} Re5 {[%emt 0:
00:49]} 41. Rf5 {[%emt 0:35:45]} ({Less strong is} 41. axb5+ Rxb5 42. Qd4 (42.
bxc4 Qh1+ 43. Kd2 Qg2+ 44. Kc3 Qg3+ 45. Kd4 Qg1+ 46. Ke4 Qe1+ 47. Kf4 Qf2+ 48.
Ke4 Qe2+ 49. Kd4 Qd2+ 50. Ke4 Qe2+ 51. Kf4 Qf2+ 52. Ke4 Qe2+ $11) 42... Qh1+
43. Kb2 Qd5 44. Qxd5 Rxd5 45. bxc4 Rg5 $18) 41... Qh1+ {[%emt 0:37:14]} 42. Kb2
{[%emt 0:00:26]} Qh8 {[%emt 0:00:08]} (42... c3+ $18 43. Ka2 Rxf5) 43. Qd4 {
[%emt 0:01:32][%csl Yc4,Ye5]} c3+ {[%emt 0:01:34]} 44. Qxc3 {[%emt 0:00:27]
White mates.} Re8 {[%emt 0:00:15]} 45. axb5+ {[%emt 0:01:47]} Kb7 {[%emt 0:00:
29]} 46. Rf6 {[%emt 0:00:08]} Rc8 {[%emt 0:00:50]} 47. Qd4 {[%emt 0:00:21]} Qd8
{[%emt 0:00:00]} 48. Rf7+ {[%emt 0:00:00]} Kb8 {[%emt 0:00:00]} 49. Rd7 {
[%emt 0:00:00]} Qh8 {[%emt 0:00:00]} 50. Rg7 {[%emt 0:00:00]} Qd8 {[%emt 0:00:
00]} 51. Qf4+ {[%emt 0:00:00]} Rc7 {[%emt 0:00:00]} 52. Rxc7 {[%emt 0:00:00]}
Qxc7 {[%emt 0:00:00]} 53. Qxc7+ {[%emt 0:00:00]} Kxc7 {[%emt 0:00:00] Never
resign too early! Weighted Error Value: White=0.59/Black=0.80} 1-0

[Event "44th Chess Olympiad Open 2022"]
[Site "Chennai"]
[Date "2022.08.07"]
[Round "9.91"]
[White "Ihsan Mohamed N T"]
[Black "Conhoff, David"]
[Result "0-1"]
[WhiteElo "1208"]
[BlackElo "1460"]
[Annotator "NA RC"]
[PlyCount "96"]
[EventDate "2022.??.??"]
[TimeControl "60"]

1. e4 {[%emt 0:00:01]} e5 {[%emt 0:00:07]} 2. Nf3 {[%emt 0:00:07]} Nc6 {
[%emt 0:00:18]} 3. Bc4 {[%emt 0:00:12]} Bc5 {[%emt 0:00:31]} 4. d3 {[%emt 0:00:
00]} h6 {[%emt 0:03:03]} 5. Be3 {[%emt 0:01:16]} Bxe3 {[%emt 0:01:26]} 6. fxe3
{[%emt 0:01:02]} Nf6 {[%emt 0:00:42]} 7. Nc3 {[%emt 0:00:38]} d6 {[%emt 0:00:
00]} 8. a3 {[%emt 0:01:55]} Na5 {[%emt 0:02:32]} 9. b4 {[%emt 0:01:37]} Nxc4 {
[%emt 0:01:04]} 10. dxc4 {[%emt 0:00:28]} O-O {[%emt 0:02:35]} 11. Nd2 {
[%emt 0:02:25]} Be6 {[%emt 0:07:52]} 12. Nd5 {[%emt 0:04:25]} Nxe4 {[%emt 0:00:
00]} 13. Nxe4 {[%emt 0:00:35]} Qh4+ {[%emt 0:00:44]} 14. Nf2 {[%emt 0:01:45]}
Qxc4 {[%emt 0:00:44]} 15. Qd3 {[%emt 0:01:37]} Bxd5 {[%emt 0:01:02]} 16. Qxc4 {
[%emt 0:00:29]} Bxc4 {[%emt 0:00:03]} 17. c3 {[%emt 0:01:32]} f5 {[%emt 0:00:
00]} 18. g3 {[%emt 0:00:08]} Rfe8 {[%emt 0:02:16]} 19. Kd2 {[%emt 0:01:06]} d5
{[%emt 0:06:12]} 20. Rae1 {[%emt 0:01:14]} a5 {[%emt 0:05:24]} 21. Ra1 {
[%emt 0:03:49]} Kf8 {[%emt 0:15:27]} 22. g4 {[%emt 0:01:29]} g6 {[%emt 0:01:19]
} 23. h4 {[%emt 0:01:23]} h5 {[%emt 0:02:43]} 24. gxh5 {[%emt 0:00:47]} gxh5 {
[%emt 0:00:04]} 25. Rhg1 {[%emt 0:00:04]} Kf7 {[%emt 0:01:31]} 26. Nh3 {
[%emt 0:02:10]} d4 {[%emt 0:05:34]} 27. cxd4 {[%emt 0:00:32]} exd4 {[%emt 0:00:
00]} 28. Ng5+ {[%emt 0:00:21]} Ke7 {[%emt 0:00:31]} 29. exd4 {[%emt 0:00:20]}
Kd6 {[%emt 0:02:15]} 30. Nf7+ {[%emt 0:00:35]} Bxf7 {[%emt 0:00:14]} 31. Rg5 {
[%emt 0:00:21]} axb4 {[%emt 0:02:20]} 32. Rxf5 {[%emt 0:00:32]} Re7 {[%emt 0:
00:00]} 33. Rf6+ {[%emt 0:01:02]} Kd7 {[%emt 0:01:05]} 34. Re1 {[%emt 0:00:31]}
bxa3 {[%emt 0:00:53]} 35. Kc2 {[%emt 0:00:08]} Rxe1 {[%emt 0:01:05]} 36. Rxf7+
{[%emt 0:00:16]} Re7 {[%emt 0:00:19]} 37. Rf1 {[%emt 0:00:19]} Kd6 {[%emt 0:00:
00]} 38. Ra1 {[%emt 0:00:13]} Kd5 {[%emt 0:00:16]} 39. Kb3 {[%emt 0:00:14]}
Kxd4 {[%emt 0:00:33]} 40. Rxa3 {[%emt 0:00:12]} Rxa3+ {[%emt 0:00:06]} 41. Kxa3
{[%emt 0:00:09]} c5 {[%emt 0:30:13]} 42. Kb3 {[%emt 0:30:03]} c4+ {[%emt 0:00:
00]} 43. Kc2 {[%emt 0:00:39]} Re2+ {[%emt 0:00:22]} 44. Kd1 {[%emt 0:00:13]}
Kd3 {[%emt 0:00:04]} 45. Kc1 {[%emt 0:00:21]} Rh2 {[%emt 0:00:14]} 46. Kb1 {
[%emt 0:00:03]} Kc3 {[%emt 0:00:00]} 47. Ka1 {[%emt 0:00:09]} Kb3 {[%emt 0:00:
00]} 48. Kb1 {[%emt 0:01:02]} Rh1# {[%emt 0:00:17]} 0-1

[Event "44th Chess Olympiad Open 2022"]
[Site "Chennai"]
[Date "2022.08.08"]
[Round "10.1"]
[White "Gukesh D"]
[Black "Abdusattorov, Nodirbek"]
[Result "0-1"]
[WhiteElo "2684"]
[BlackElo "2688"]
[Annotator "TA"]
[PlyCount "144"]
[EventDate "2022.??.??"]
[TimeControl "60"]

{[%evp 12,144,11,8,20,33,28,18,31,36,41,4,13,0,-6,-15,-15,-30,-33,-31,-33,-28,
0,0,26,25,25,18,36,46,62,66,74,93,85,91,136,136,125,129,122,126,110,118,457,
226,215,199,228,220,216,195,201,170,196,190,339,183,196,239,262,251,321,320,
369,358,362,364,347,359,352,335,341,264,284,290,296,205,215,68,72,68,84,0,0,0,
0,0,0,0,0,0,0,0,0,0,0,0,0,0,0,0,0,0,0,0,0,0,0,0,0,0,0,0,0,-24,-24,-27,-27,-23,
-50,-83,0,0,0,-93,-87,-97,-94,-100,-94,-93,-103,-5057,-2679]} 1. d4 {[%emt 0:
00:00]} Nf6 {[%emt 0:00:11]} 2. c4 {[%emt 0:01:13]} e6 {[%emt 0:00:21]} 3. Nf3
{[%emt 0:01:04]} d5 {[%emt 0:00:22]} 4. Nc3 {[%emt 0:00:17]} Bb4 {[%emt 0:00:
00]} 5. Qa4+ {[%emt 0:01:22]} Nc6 {[%emt 0:00:13]} 6. e3 {[%emt 0:00:44]} O-O {
[%emt 0:00:19]} 7. Bd2 {[%emt 0:05:22]} a5 {[%emt 0:00:35] D38: Queen's Gambit
Declined: Ragozin Defence (4 Nf3 Bb4).} 8. a3 {[%emt 0:04:02]} Bxc3 {[%emt 0:
00:00]} 9. Bxc3 {[%emt 0:00:07]} Ne7 {[%emt 0:00:14] The position is equal.}
10. Qc2 {[%emt 0:01:43]} b6 {[%emt 0:00:23]} 11. b3 {[%emt 0:08:44]} Ba6 {
[%emt 0:02:37][%cal Ya5a4] [#]} 12. a4 $146 {[%emt 0:00:57]} ({Predecessor:} 
12. Nd2 a4 13. bxa4 dxc4 14. e4 Qd7 15. Be2 Bb7 16. Bxc4 Rxa4 17. Bb3 Rxd4 18.
Bxd4 Qxd4 {1-0 (69) Sevian,S (2647)-Bok,B (2624) Krasnaya Polyana 2021}) 12...
Ne4 {[%emt 0:05:28]} 13. Bb2 {[%emt 0:10:05]} Nc6 $1 {[%emt 0:07:00]} 14. Ba3 {
[%emt 0:00:07]} Nb4 {[%emt 0:00:27]} 15. Bxb4 {[%emt 0:00:07]} axb4 {[%emt 0:
00:00]} 16. Bd3 {[%emt 0:00:08]} Nf6 {[%emt 0:00:17]} 17. O-O {[%emt 0:02:22]
[%cal Yh1f1,Yf1e1,Ye1d1]} c5 {[%emt 0:00:59]} 18. dxc5 {[%emt 0:03:57]} bxc5 {
[%emt 0:00:22]} 19. e4 {[%emt 0:02:43]} dxe4 {[%emt 0:21:58]} 20. Bxe4 {
[%emt 0:00:07]} Ra7 {[%emt 0:00:01]} 21. Ne5 {[%emt 0:00:15]} Qd6 {[%emt 0:00:
00] [#]} 22. Rfe1 $1 {[%emt 0:01:32]} Nxe4 {[%emt 0:00:10]} 23. Qxe4 {[%emt 0:
00:00]} Rd8 {[%emt 0:02:30]} 24. Qf3 {[%emt 0:13:03]} Qc7 {[%emt 0:02:20]} 25.
Rad1 {[%emt 0:01:03] Hoping for Nc6.} Raa8 {[%emt 0:16:45]} 26. Rxd8+ {[%emt 0:
00:00]} ({But not} 26. Rd7 $6 Rxd7 27. Qxa8+ Rd8 $11) 26... Rxd8 {[%emt 0:00:
00]} 27. Rd1 $1 $36 {[%emt 0:02:57] Black is under strong pressure.} Rc8 {
[%emt 0:14:49]} (27... Rxd1+ $16 {is tougher.} 28. Qxd1 f5) 28. Qg3 {[%emt 0:
03:26]} (28. Qh5 $142 {Strongly threatening Rd7.} Rf8 29. Rd7) 28... h5 {
[%emt 0:00:12]} 29. h3 {[%emt 0:05:03]} (29. Rd7 $6 Rd8 30. Rxd8+ (30. Rxc7 $2
Rd1#) 30... Qxd8) 29... Rd8 {[%emt 0:02:39] Inhibits Rd7.} 30. Rxd8+ {[%emt 0:
01:19]} Qxd8 $18 {[%emt 0:00:02] Endgame KQB-KQN} 31. Nd3 {[%emt 0:04:14]} h4 {
[%emt 0:00:21]} 32. Qe3 {[%emt 0:00:24]} Bb7 {[%emt 0:00:00]} 33. f3 {[%emt 0:
04:13]} Qd6 {[%emt 0:02:56]} (33... Qf6 {is a better defense.}) 34. Kf1 {
[%emt 0:00:48]} (34. Nxc5 $142 Bc8 35. Nd3) 34... e5 {[%emt 0:01:36]} 35. Nxc5
{[%emt 0:01:44]} Bc8 {[%emt 0:00:02]} 36. Ke1 {[%emt 0:05:36] Against Qd1+.
aiming for Ne4.} Bf5 {[%emt 0:01:54]} 37. a5 {[%emt 0:01:06] Threatens to win
with a6.} Qc7 {[%emt 0:02:06]} 38. a6 {[%emt 0:00:00]} Bc8 {[%emt 0:01:08]} 39.
Nd3 {[%emt 0:01:10][%csl Yb4,Ye5] And now a7 would win.} Bxa6 {[%emt 0:00:06]}
40. Qxe5 {[%emt 0:00:11]} Qb6 {[%emt 0:00:00]} 41. Nc5 {[%emt 0:32:40]} ({
Resist} 41. Qe8+ Kh7 42. Qe4+ Kg8 $18) 41... Qa5 {[%emt 0:05:04]} 42. Kd1 {
[%emt 0:00:00]} Qd8+ {[%emt 0:01:32]} 43. Kc2 {[%emt 0:00:00]} Bc8 {[%emt 0:00:
29]} 44. Ne4 {[%emt 0:00:00]} Be6 {[%emt 0:00:00]} 45. Kb2 {[%emt 0:00:00]} ({
White should play} 45. Qd6 $18 Qa5 46. Kd3) 45... Qa8 $14 {[%emt 0:02:51]} 46.
Nc5 {[%emt 0:00:00]} Qa3+ {[%emt 0:03:55]} 47. Kb1 {[%emt 0:00:00]} (47. Kc2 $1
$16 Qa2+ 48. Kc1) 47... g6 $11 {[%emt 0:00:00]} 48. Kc2 {[%emt 0:00:00]} Qa2+ {
[%emt 0:01:09]} 49. Qb2 {[%emt 0:00:00]} Bf5+ {[%emt 0:00:17]} 50. Ne4 {
[%emt 0:00:00]} Qa7 {[%emt 0:00:24]} 51. Kd3 {[%emt 0:00:11]} Qg1 {[%emt 0:00:
56]} 52. Qc2 {[%emt 0:00:15]} Qc5 {[%emt 0:00:00]} 53. Qd2 {[%emt 0:00:17]} Qg1
{[%emt 0:00:13]} (53... Qe7 54. Qf4 $14) 54. Kc2 {[%emt 0:04:51]} Qa1 {[%emt 0:
00:21]} 55. Kd3 {[%emt 0:03:00]} Qg1 {[%emt 0:00:17] Against c5} 56. Qe2 {
[%emt 0:00:04]} Qa7 {[%emt 0:01:30]} 57. Qe3 {[%emt 0:01:46]} Qa2 {[%emt 0:00:
35][%csl Yb3,Yg2]} 58. Kd4 {[%emt 0:00:00]} Qxg2 {[%emt 0:00:13]} 59. Ng5 {
[%emt 0:01:09]} f6 {[%emt 0:04:50]} 60. Qe8+ {[%emt 0:00:07]} Kg7 {[%emt 0:00:
00]} 61. Qe7+ {[%emt 0:00:29]} Kh6 {[%emt 0:00:05] Dancing on a razor blade.}
62. Nf7+ {[%emt 0:00:32]} Kh5 {[%emt 0:00:07]} 63. Kc5 {[%emt 0:00:56]} (63.
Qe3 $5 {[%cal Re3h6]} g5 64. Nd6 $11) 63... Qxf3 {[%emt 0:01:12]} 64. Qxf6 {
[%emt 0:00:37][%cal Rf6h8]} Qe3+ {[%emt 0:00:05]} 65. Kxb4 {[%emt 0:00:05]
Qh8+ would kill now.} Bxh3 {[%emt 0:00:00]} 66. Ne5 {[%emt 0:00:59][%csl Ge5]
[%cal Rf6g6]} Qd2+ {[%emt 0:01:24]} (66... Bf5 $17 {...h3 is the strong threat.
} 67. Qh8+ Qh6) 67. Kb5 {[%emt 0:00:00][%csl Ge5][%cal Rf6g6]} Bd7+ {[%emt 0:
00:30]} 68. Kc5 {[%emt 0:00:34]} (68. Kb6 $11 Qb4+ 69. Kc7) 68... Qe3+ {
[%emt 0:01:52]} (68... Bf5 69. Qxh4+ $1 Kxh4 70. Nf3+ Kg3 71. Nxd2 $11) 69. Kb4
{[%emt 0:00:25][%csl Ge5][%cal Rf6g6]} Bf5 {[%emt 0:00:32] White must now
prevent ...h3.} 70. Qh8+ {[%emt 0:00:11]} Qh6 {[%emt 0:00:19]} 71. Qd8 {
[%emt 0:00:04] [#] Intending Qd1+ and mate.} Qg7 $1 {[%emt 0:00:49]} 72. Nf3 $2
{[%emt 0:01:22]} (72. Qd1+ $17 Kh6 73. Qd5) 72... Qb7+ {[%emt 0:00:04] Quite a
comeback for Black. Weighted Error Value: White=0.18 (very precise) /Black=0.
20 (precise)} 0-1